bitfinex/quotes_SOLUSD_20260309
["timestamp","ask_amount","ask_price","bid_price","bid_amount"]
[1773026209624,1.42920247,84.169,84.13,11.62043688]
[1773026209935,1.42920247,84.169,84.122,11.88749673]
[1773026209936,7.29213614,84.183,84.16,11.62043688]
[1773026210240,11.87322632,84.224,84.171,0.88658966]
[1773026210439,11.87322632,84.224,84.19,11.62043688]
[1773026210936,13.30242879,84.224,84.19,11.62043688]
[1773026211235,1.42920247,84.219,84.19,11.62043688]
[1773026211636,11.87147486,84.236,84.21,11.62043688]
[1773026211816,11.86969996,84.249,84.22,11.62043688]
[1773026212017,1.42920247,84.255,84.23,11.62043688]
[1773026212736,1.42920247,84.249,84.21,11.62043688]
[1773026212940,11.86887053,84.255,84.21,11.62043688]
[1773026212941,1.42920247,84.239,84.21,11.62043688]
[1773026213119,1.42920247,84.229,84.2,11.62043688]
[1773026213317,1.42920247,84.229,84.19,11.62043688]
[1773026213528,1.42920247,84.229,84.176,0.89067773]
[1773026213529,1.42920247,84.219,84.18,11.62043688]
[1773026213838,1.42920247,84.217,84.181,11.87916513]
[1773026214818,1.42920247,84.199,84.16,11.62043688]
[1773026215940,1.42920247,84.197,84.161,11.88198809]
[1773026216340,1.42920247,84.197,84.136,3.69383402]
[1773026216341,1.42920247,84.189,84.155,11.88271401]
[1773026216532,1.42920247,84.189,84.16,11.62043688]
[1773026216729,11.87515592,84.21,84.18,11.62043688]
[1773026216928,1.42920247,84.226,84.19,11.62043688]
[1773026217329,13.04963935,84.22,84.18,11.62043688]
[1773026217641,1.42920247,84.219,84.18,11.62043688]
[1773026217944,11.62043688,84.21,84.181,11.87916513]
[1773026218249,1.42920247,84.209,84.175,11.87988063]
[1773026219940,11.87535626,84.208,84.175,11.87988063]
[1773026220140,11.87535626,84.208,84.18,11.62043688]
[1773026220338,1.42920247,84.207,84.17,11.62043688]
[1773026220541,11.87535626,84.208,84.17,11.62043688]
[1773026220737,11.87302097,84.225,84.19,11.62043688]
[1773026221046,13.30222344,84.225,84.19,11.62043688]
[1773026221248,1.42920247,84.224,84.19,11.62043688]
[1773026221752,3.69383402,84.277,84.18,0.87692815]
[1773026221753,1.42920247,84.236,84.21,11.62043688]
[1773026221933,1.42920247,84.25,84.22,11.62043688]
[1773026222130,11.86994377,84.247,84.221,11.87352323]
[1773026222445,1.42920247,84.25,84.221,11.87352323]
[1773026222645,29.66986232,84.261,84.23,11.62043688]
[1773026222646,1.42920247,84.261,84.23,11.62043688]
[1773026222832,11.62043688,84.27,84.187,59.39100525]
[1773026222833,11.62043688,84.25,84.216,11.87419503]
[1773026223031,1.43196108,84.247,84.216,11.87419503]
[1773026223234,1.43196108,84.26,84.23,11.62043688]
[1773026223443,1.43196108,84.26,84.24,11.62043688]
[1773026223632,1.43196108,84.26,84.23,11.62043688]
[1773026224038,13.29806043,84.274,84.241,11.87070428]
[1773026224228,1.43196108,84.273,84.241,11.87070428]
[1773026224438,1.43196108,84.273,84.205,0.28432314]
[1773026224439,1.43196108,84.259,84.22,11.62043688]
[1773026225231,1.43196108,84.259,84.23,11.62043688]
[1773026225951,1.43196108,84.258,84.23,23.49256051]
[1773026226978,1.43196108,84.258,84.23,11.87212363]
[1773026227260,1.43196108,84.239,84.2,11.62043688]
[1773026227454,1.43196108,84.229,84.19,11.62043688]
[1773026227645,1.49927045,84.219,84.19,11.62043688]
[1773026227953,1.49927045,84.217,84.18,11.62043688]
[1773026228157,1.49927045,84.209,84.178,11.87958849]
[1773026228368,1.49927045,84.199,84.171,11.88057644]
[1773026228742,11.90476002,84.24,84.171,11.88057644]
[1773026228743,1.49927045,84.28,84.191,0.87636214]
[1773026228952,11.62043688,84.24,84.21,11.62043688]
[1773026229129,1.49927045,84.219,84.18,11.62043688]
[1773026229441,0.14216157,84.277,84.171,41.58201755]
[1773026229442,1.49927045,84.229,84.19,11.62043688]
[1773026229634,1.49927045,84.229,84.2,11.62043688]
[1773026229834,1.49927045,84.227,84.19,11.62043688]
[1773026230029,1.49927045,84.219,84.18,11.62043688]
[1773026230231,1.49927045,84.219,84.19,11.62043688]
[1773026230436,1.49927045,84.227,84.2,11.62043688]
[1773026230841,1.49927045,84.251,84.21,11.62043688]
[1773026231039,1.49927045,84.249,84.21,11.62043688]
[1773026231440,1.49927045,84.249,84.18,11.62043688]
[1773026231441,11.86857459,84.257,84.23,11.62043688]
[1773026231640,1.49927045,84.269,84.23,11.62043688]
[1773026231841,11.86830924,84.258,84.221,11.87352323]
[1773026232051,1.49927045,84.257,84.221,11.87352323]
[1773026232637,1.49927045,84.257,84.22,11.62043688]
[1773026232833,11.62043688,84.25,84.215,11.87427027]
[1773026233046,1.49927045,84.249,84.211,11.8749332]
[1773026233244,1.49927045,84.249,84.22,11.62043688]
[1773026233955,1.49927045,84.247,84.21,11.62043688]
[1773026234153,59.33268437,84.271,84.205,11.8757499]
[1773026234154,1.49927045,84.251,84.22,11.62043688]
[1773026234491,1.49927045,84.292,84.241,0.86505215]
[1773026234637,1.49927045,84.292,84.27,11.62043688]
[1773026234956,11.72043688,84.36,84.25,11.62043688]
[1773026234957,1.49927045,84.289,84.25,11.62043688]
[1773026235139,1.49927045,84.279,84.25,11.62043688]
[1773026235758,1.49927045,84.279,84.229,0.86315046]
[1773026235968,1.49927045,84.279,84.24,11.62043688]
[1773026236149,1.49927045,84.277,84.24,11.62043688]
[1773026236348,1.49927045,84.269,84.232,11.87191535]
[1773026236549,1.49927045,84.269,84.24,11.62043688]
[1773026237955,1.49927045,84.269,84.231,11.87211359]
[1773026238351,11.62043688,84.27,84.231,11.87211359]
[1773026238352,1.49927045,84.267,84.231,11.87211359]
[1773026239260,1.49927045,84.259,84.23,11.62043688]
[1773026239638,1.49927045,84.259,84.23,11.59449822]
[1773026240256,11.86690084,84.268,84.196,0.86012629]
[1773026240257,1.49927045,84.249,84.196,0.86012629]
[1773026240464,1.49927045,84.249,84.22,11.59449822]
[1773026241362,13.36898842,84.248,84.22,11.59449822]
[1773026241556,1.49927045,84.247,84.22,11.59449822]
[1773026241757,11.86971797,84.248,84.21,11.59449822]
[1773026242068,11.86971797,84.248,84.199,0.85818275]
[1773026242069,13.36898842,84.248,84.22,11.59449822]
[1773026242473,1.49927045,84.247,84.212,11.87478789]
[1773026242765,1.49927045,84.247,84.21,11.59449822]
[1773026243063,1.49927045,84.247,84.21,23.46951282]
[1773026243649,1.49927045,84.247,84.161,0.85427715]
[1773026243847,1.49927045,84.247,84.102,11.87575724]
[1773026243848,11.59449822,84.21,84.172,0.85232144]
[1773026244060,1.49927045,84.209,84.17,11.59449822]
[1773026244261,1.49927045,84.207,84.175,11.87998911]
[1773026244472,1.49927045,84.199,84.165,11.88136257]
[1773026245266,1.49927045,84.199,84.17,11.59449822]
[1773026245660,1.49927045,84.199,84.165,11.88136257]
[1773026245966,13.09376867,84.19,84.159,11.88220961]
[1773026246271,1.49927045,84.189,84.16,11.59449822]
[1773026246460,1.49927045,84.189,84.161,11.88198809]
[1773026246960,13.09376867,84.2,84.161,11.88198809]
[1773026247160,1.49927045,84.198,84.161,11.88198809]
[1773026247774,1.49927045,84.179,84.139,11.8850949]
[1773026247974,1.49927045,84.179,84.052,47.58920681]
[1773026247975,11.59449822,84.16,84.12,11.59449822]
[1773026248158,1.49927045,84.159,84.12,11.59449822]
[1773026248570,1.49927045,84.159,84.13,11.59449822]
[1773026248957,1.49927045,84.157,84.121,11.88763804]
[1773026249961,1.49927045,84.149,84.121,11.88763804]
[1773026250163,13.09376867,84.16,84.121,41.60673315]
[1773026250363,1.49927045,84.159,84.121,11.88763804]
[1773026250572,1.49927045,84.157,84.121,11.88763804]
[1773026250960,11.59449822,84.15,84.121,11.88763804]
[1773026251376,1.49927045,84.149,84.115,11.8883526]
[1773026251579,41.58844078,84.158,84.09,11.59449822]
[1773026251580,1.49927045,84.129,84.09,11.59449822]
[1773026251879,1.49927045,84.129,84.04,12.05834165]
[1773026251880,1.49927045,84.119,84.081,11.89329337]
[1773026252277,11.59449822,84.13,84.09,11.59449822]
[1773026252579,11.88650762,84.129,84.1,23.4850341]
[1773026252778,11.88650762,84.129,84.1,11.89053588]
[1773026253077,1.46089236,84.128,84.1,11.89053588]
[1773026253583,1.46089236,84.144,84.11,11.59449822]
[1773026253767,11.59449822,84.14,84.11,11.59449822]
[1773026253967,1.46089236,84.139,84.101,1.4176201]
[1773026254159,1.46089236,84.139,84.11,11.59449822]
[1773026254355,11.88227046,84.159,84.12,13.01211832]
[1773026254584,11.88227046,84.159,84.1,41.61705193]
[1773026254585,1.46089236,84.147,84.11,11.59449822]
[1773026254881,1.46089236,84.139,84.111,11.88905137]
[1773026255380,11.59449822,84.15,84.111,41.6116798]
[1773026255584,1.46089236,84.149,84.111,11.88905137]
[1773026255769,184.01120685,84.234,84.12,11.59449822]
[1773026255770,11.59449822,84.16,84.12,11.59449822]
[1773026256662,11.59449822,84.16,84.086,3.69383402]
[1773026256663,1.46089236,84.197,84.13,13.01211832]
[1773026256862,1.46089236,84.175,84.141,1.4176201]
[1773026257079,1.46089236,84.186,84.15,11.59449822]
[1773026257380,1.46089236,84.186,84.141,1.4176201]
[1773026257381,1.46089236,84.186,84.16,11.0315782]
[1773026257560,11.59449822,84.17,84.122,1.4176201]
[1773026257767,11.59449822,84.19,84.16,11.59449822]
[1773026258162,1.46089236,84.189,84.151,1.4176201]
[1773026258375,1.46089236,84.189,84.15,11.59449822]
[1773026258786,1.46089236,84.187,84.151,11.88340007]
[1773026259770,11.59449822,84.18,84.151,11.88340007]
[1773026260171,29.69226932,84.197,84.151,11.88340007]
[1773026260172,11.87690772,84.197,84.16,11.59449822]
[1773026260484,1.46089236,84.179,84.145,11.88424298]
[1773026260665,1.46089236,84.179,84.14,23.47939498]
[1773026260987,0.28432314,84.22,84.096,4.82477569]
[1773026260988,1.46089236,84.159,84.12,11.59449822]
[1773026261183,11.59449822,84.14,84.115,11.88848236]
[1773026261883,1.46089236,84.129,84.092,29.72926522]
[1773026262380,1.46089236,84.129,84.09,11.59449822]
[1773026262381,11.59449822,84.13,84.093,11.8915962]
[1773026262567,11.59449822,84.12,84.093,11.8915962]
[1773026262773,0.28432314,84.16,84.093,11.8915962]
[1773026262774,13.34754127,84.128,84.093,11.8915962]
[1773026263074,1.46089236,84.127,84.093,11.8915962]
[1773026264074,11.59449822,84.12,84.093,11.8915962]
[1773026264389,1.46089236,84.137,84.1,11.59449822]
[1773026264568,11.59449822,84.13,84.1,11.59449822]
[1773026264764,1.46089236,84.129,84.101,11.89046503]
[1773026264979,1.46089236,84.128,84.091,11.89187903]
[1773026265578,11.59449822,84.12,84.087,1.4176201]
[1773026265880,1.46089236,84.128,84.087,1.4176201]
[1773026266081,41.60277668,84.129,84.08,0.2]
[1773026266082,11.59449822,84.1,84.08,0.2]
[1773026266380,1.46089236,84.109,84.08,0.2]
[1773026266584,11.59449822,84.1,84.08,0.2]
[1773026266884,13.35164016,84.099,84.08,0.2]
[1773026267083,1.46089236,84.098,84.08,0.2]
[1773026267286,11.8907478,84.099,84.08,0.2]
[1773026267466,1.46089236,84.098,84.08,0.2]
[1773026267671,1.46089236,84.098,84.072,11.8944353]
[1773026268077,11.8907478,84.099,84.072,11.8944353]
[1773026268279,1.46089236,84.109,84.073,1.4176201]
[1773026268497,11.59449822,84.1,84.073,1.4176201]
[1773026268667,11.59449822,84.1,84.066,11.89529441]
[1773026268668,1.46089236,84.099,84.066,11.89529441]
[1773026268988,1.46089236,84.097,84.061,11.89612305]
[1773026269393,1.46089236,84.109,84.07,11.59449822]
[1773026269580,1.46089236,84.099,84.058,1.4176201]
[1773026269788,1.46089236,84.099,84.059,11.89640609]
[1773026269969,1.46089236,84.079,84.042,1.4176201]
[1773026270702,0.759,84.117,84.04,11.79449822]
[1773026270703,0.759,84.117,84.071,1.4176201]
[1773026270872,11.88834466,84.116,84.081,1.4176201]
[1773026271073,0.759,84.117,84.081,1.4176201]
[1773026272008,1.46089236,84.115,84.08,11.59449822]
[1773026273881,13.34951969,84.114,84.081,11.89329337]
[1773026275180,1.46089236,84.109,84.07,11.59449822]
[1773026275587,11.88834466,84.116,84.09,11.59449822]
[1773026275892,11.88834466,84.116,84.081,11.89329337]
[1773026275893,1.46089236,84.113,84.081,11.89329337]
[1773026276097,1.46089236,84.113,84.081,13.31091347]
[1773026276275,11.8850949,84.139,84.101,1.4176201]
[1773026276674,1.46089236,84.138,84.101,1.4176201]
[1773026277093,11.59449822,84.13,84.101,1.4176201]
[1773026277293,11.59449822,84.13,84.091,1.4176201]
[1773026277593,41.59783215,84.139,84.082,1.4176201]
[1773026277594,1.46089236,84.119,84.082,1.4176201]
[1773026277778,1.46089236,84.119,84.07,29.73678025]
[1773026277779,1.46089236,84.119,84.076,11.89387393]
[1773026277975,1.46089236,84.107,84.071,13.31220573]
[1773026278581,1.46089236,84.099,84.061,13.31365607]
[1773026278792,1.46089236,84.099,84.062,1.4176201]
[1773026280199,11.8908892,84.098,84.062,1.4176201]
[1773026280400,1.46089236,84.097,84.062,1.4176201]
[1773026280695,1.46089236,84.097,84.063,11.89584002]
[1773026282996,11.89117199,84.096,84.063,11.89584002]
[1773026283179,11.88825015,84.117,84.081,1.50584775]
[1773026283790,1.45117857,84.116,84.081,1.50584775]
[1773026284189,11.59449822,84.11,84.081,1.50584775]
[1773026284487,11.59449822,84.11,84.071,1.50584775]
[1773026285389,0.759,84.129,84.101,1.50584775]
[1773026285781,0.759,84.129,84.11,11.59449822]
[1773026286185,0.759,84.129,84.101,1.50584775]
[1773026286401,0.759,84.129,84.1,11.59449822]
[1773026286700,0.759,84.129,84.111,1.50584775]
[1773026286906,11.88464421,84.143,84.111,1.50584775]
[1773026287487,1.45117857,84.149,84.112,11.88891002]
[1773026287688,1.45117857,84.149,84.101,13.39627139]
[1773026288011,1.45117857,84.149,84.11,11.59449822]
[1773026288693,0.759,84.168,84.101,43.12243398]
[1773026288694,1.47173297,84.166,84.13,11.59449822]
[1773026289407,0.759,84.168,84.15,11.59449822]
[1773026289597,0.759,84.168,84.15,23.47803126]
[1773026290413,0.759,84.168,84.145,11.88416104]
[1773026290596,0.759,84.168,84.16,11.59449822]
[1773026290904,0.759,84.168,84.151,1.43142774]
[1773026290905,1.47173297,84.198,84.151,1.43142774]
[1773026291098,13.06623119,84.19,84.151,1.43142774]
[1773026291300,1.47173297,84.189,84.151,1.43142774]
[1773026291493,1.47173297,84.177,84.141,1.43142774]
[1773026291807,11.87858266,84.186,84.151,1.43142774]
[1773026292002,1.47173297,84.199,84.161,1.43142774]
[1773026292200,1.47173297,84.199,84.17,11.59449822]
[1773026292403,1.47173297,84.198,84.15,13.02592596]
[1773026292607,1.47173297,84.198,84.16,11.59449822]
[1773026292812,1.47173297,84.198,84.125,9.39999056]
[1773026293111,1.47173297,84.198,83.991,24.85836138]
[1773026293112,1.47173297,84.129,84.07,11.59449822]
[1773026293291,1.47173297,84.129,84.041,41.64633928]
[1773026293292,10.34349583,84.1,84.041,41.64633928]
[1773026293498,10.34349583,84.1,84.06,11.59449822]
[1773026293793,11.88967757,84.107,84.07,11.59449822]
[1773026293794,11.88967306,84.107,84.07,11.59449822]
[1773026294205,11.88967306,84.107,84.041,41.64633928]
[1773026294406,11.59449822,84.1,84.06,11.59449822]
[1773026294590,11.59449822,84.1,84.05,11.59449822]
[1773026295009,11.59449822,84.1,84.041,41.64633928]
[1773026295010,11.59449822,84.1,84.043,1.43142774]
[1773026295215,11.59449822,84.1,84.061,1.43142774]
[1773026295597,11.8907478,84.099,84.063,1.43142774]
[1773026295905,41.61761732,84.099,84.063,1.43142774]
[1773026296411,0.28432314,84.13,84.036,3.69383402]
[1773026296412,1.47173297,84.146,84.091,1.43142774]
[1773026296605,12.78333268,84.15,84.111,1.43142774]
[1773026297115,11.59449822,84.14,84.111,1.43142774]
[1773026297301,12.78333268,84.15,84.111,1.43142774]
[1773026297501,41.59288879,84.149,84.111,1.43142774]
[1773026297702,1.18883446,84.148,84.111,1.43142774]
[1773026298092,11.59449822,84.14,84.1,13.02592596]
[1773026298297,1.18883446,84.139,84.101,1.43142774]
[1773026299003,1.18883446,84.139,84.066,3.69383402]
[1773026299004,11.59449822,84.13,84.095,1.43142774]
[1773026299205,1.18883446,84.129,84.095,1.43142774]
[1773026299607,41.60327119,84.128,84.095,1.43142774]
[1773026299917,11.63485496,84.12,84.084,1.43142774]
[1773026300499,11.63485496,84.11,84.072,1.43142774]
[1773026300700,11.63485496,84.1,84.072,1.43142774]
[1773026301495,41.61761732,84.099,84.061,1.43142774]
[1773026301702,1.47173297,84.09,84.05,1.43142774]
[1773026301901,11.63485496,84.08,84.052,1.43142774]
[1773026302419,41.61761732,84.099,84.06,1.43142774]
[1773026302611,11.63485496,84.09,84.061,1.43142774]
[1773026302923,11.8907478,84.099,84.061,1.43142774]
[1773026303415,11.63485496,84.09,84.061,1.43142774]
[1773026303617,11.89216187,84.089,84.061,1.43142774]
[1773026304201,41.62256656,84.089,84.053,1.43142774]
[1773026304814,11.890006,84.105,84.071,1.43142774]
[1773026305119,11.63485496,84.1,84.071,1.43142774]
[1773026305805,23.52553285,84.1,84.072,11.89456656]
[1773026306006,23.52553285,84.1,84.071,1.43142774]
[1773026306807,23.52553285,84.1,84.072,1.43142774]
[1773026308025,11.88981213,84.106,84.072,1.43142774]
[1773026308227,11.63485496,84.1,84.072,1.43142774]
[1773026308408,11.63485496,84.1,84.072,13.3259943]
[1773026309114,11.63485496,84.1,84.072,13.32594183]
[1773026309539,11.63485496,84.1,84.073,1.43142774]
[1773026309913,11.8907478,84.099,84.073,1.43142774]
[1773026310113,1.18883446,84.098,84.064,11.89563517]
[1773026310516,11.63485496,84.09,84.063,1.43142774]
[1773026310821,11.63485496,84.09,84.063,13.32716612]
[1773026311129,11.63485496,84.11,84.071,1.43142774]
[1773026312120,11.63485496,84.11,84.044,59.49225494]
[1773026312121,11.63485496,84.09,84.06,1.43142774]
[1773026312321,1.47173297,84.099,84.061,11.89612305]
[1773026312723,1.47173297,84.099,84.061,13.32755079]
[1773026312916,1.47173297,84.099,84.061,1.43142774]
[1773026314130,11.88947543,84.108,84.071,1.50666286]
[1773026314626,11.88947543,84.108,84.081,1.50666286]
[1773026315927,11.88947543,84.108,84.062,41.63593537]
[1773026315928,11.88947543,84.108,84.071,1.50666286]
[1773026316832,1.5678912,84.099,84.063,1.50666286]
[1773026317820,11.63485496,84.1,84.063,1.50666286]
[1773026318330,11.63485496,84.1,84.061,11.89612305]
[1773026318331,11.88834466,84.116,84.071,1.50666286]
[1773026318519,11.88834466,84.116,84.081,1.50666286]
[1773026318835,1.5678912,84.109,84.07,11.63485496]
[1773026319033,1.5678912,84.109,84.071,1.50666286]
[1773026319218,1.5678912,84.099,84.059,1.50666286]
[1773026319533,1.5678912,84.099,84.061,1.50666286]
[1773026319734,1.5678912,84.099,84.051,1.50666286]
[1773026320318,1.5678912,84.089,84.051,1.50666286]
[1773026320524,11.63485496,84.08,84.051,1.50666286]
[1773026320719,11.89357627,84.079,84.051,1.50666286]
[1773026321335,11.89294188,84.084,84.052,11.89739684]
[1773026321522,11.63485496,84.1,84.061,1.50666286]
[1773026322440,13.20274616,84.11,84.071,1.50666286]
[1773026322737,11.63485496,84.11,84.071,1.50666286]
[1773026322921,11.63485496,84.11,84.072,11.89456656]
[1773026322922,11.88933407,84.109,84.072,11.89456656]
[1773026323121,1.5678912,84.108,84.073,1.50666286]
[1773026323323,1.5678912,84.089,84.054,1.50666286]
[1773026323835,11.63485496,84.08,84.054,1.50666286]
[1773026324236,1.5678912,84.089,84.054,1.50666286]
[1773026324560,1.5678912,84.08,84.045,13.40500874]
[1773026324718,13.20274616,84.08,84.046,1.50666286]
[1773026325114,101.05933965,84.109,84.04,0.2]
[1773026325115,11.63485496,84.07,84.04,0.2]
[1773026325335,11.63485496,84.07,84.042,1.50666286]
[1773026325536,1.5678912,84.078,84.042,1.50666286]
[1773026326222,11.89357627,84.079,84.051,1.50666286]
[1773026328129,11.89357627,84.079,84.042,13.40533793]
[1773026328130,1.5678912,84.078,84.042,13.40533793]
[1773026328761,1.5678912,84.078,84.043,1.50666286]
[1773026329224,11.63485496,84.07,84.043,1.50666286]
[1773026329423,1.5678912,84.069,84.04,0.2]
[1773026330244,1.5678912,84.069,84.041,11.89895408]
[1773026330426,13.46015637,84.089,84.051,1.50666286]
[1773026330954,1.5678912,84.079,84.051,1.50666286]
[1773026331245,11.63485496,84.07,84.041,13.40561694]
[1773026332072,11.89499101,84.069,84.041,13.40561694]
[1773026332545,1.5678912,84.077,84.041,13.40561694]
[1773026333025,11.63485496,84.07,84.042,1.50666286]
[1773026333221,1.5678912,84.077,84.042,1.50666286]
[1773026333439,11.89294255,84.084,84.042,1.50666286]
[1773026333743,1.5678912,84.083,84.042,1.50666286]
[1773026333937,7.23081656,84.1,84.041,11.89895408]
[1773026333938,7.23081656,84.1,84.071,1.50666286]
[1773026334241,7.23081656,84.1,84.081,1.50666286]
[1773026334431,18.87394499,84.13,84.091,1.50666286]
[1773026334637,18.87394499,84.13,84.072,41.63098296]
[1773026334638,11.88396496,84.147,84.111,1.50666286]
[1773026334847,1.5678912,84.148,84.111,1.50666286]
[1773026335232,11.88396496,84.147,84.111,1.50666286]
[1773026335635,41.59387737,84.147,84.111,1.50666286]
[1773026336022,1.5678912,84.144,84.111,1.50666286]
[1773026336422,11.63485496,84.14,84.111,1.50666286]
[1773026337242,11.88424743,84.145,84.112,1.50666286]
[1773026337639,43.1627572,84.145,84.112,1.50666286]
[1773026337940,11.63485496,84.14,84.112,1.50666286]
[1773026338144,11.63485496,84.14,84.1,13.14151782]
[1773026338145,1.5678912,84.138,84.1,13.14151782]
[1773026338340,1.5678912,84.138,84.1,11.63485496]
[1773026338523,41.59783215,84.139,84.101,1.50666286]
[1773026338727,11.88283524,84.155,84.131,1.50666286]
[1773026338925,11.88283524,84.155,84.102,3.97815716]
[1773026338926,1.5678912,84.186,84.15,11.63485496]
[1773026339232,1.5678912,84.184,84.151,1.50666286]
[1773026340140,1.5678912,84.184,84.112,0.28432314]
[1773026340141,1.5678912,84.158,84.085,1.50666286]
[1773026340324,1.5678912,84.139,84.101,1.50666286]
[1773026341323,1.5678912,84.139,84.11,11.63485496]
[1773026341536,11.63485496,84.16,84.121,1.50666286]
[1773026341837,0.759,84.167,84.151,1.50666286]
[1773026342039,11.88128222,84.166,84.14,11.63485496]
[1773026342236,1.5678912,84.159,84.12,11.63485496]
[1773026342443,41.58448778,84.166,84.14,11.63485496]
[1773026342842,11.88128222,84.166,84.14,11.63485496]
[1773026343037,0.759,84.167,84.102,0.28432314]
[1773026343038,0.759,84.167,84.15,11.63485496]
[1773026343343,11.73485496,84.19,84.12,11.63485496]
[1773026343344,0.1,84.19,84.16,11.63485496]
[1773026343544,1.63026197,84.204,84.12,11.63485496]
[1773026343732,1.63026197,84.202,84.17,11.63485496]
[1773026343943,1.63026197,84.199,84.12,11.63485496]
[1773026344247,11.63485496,84.24,84.12,11.63485496]
[1773026344248,1.63026197,84.213,84.18,11.63485496]
[1773026345435,1.63026197,84.199,84.16,11.63485496]
[1773026345748,0.59381244,84.213,84.19,11.63485496]
[1773026345928,11.87048472,84.243,84.201,1.51465175]
[1773026346128,11.87048472,84.243,84.22,11.63485496]
[1773026346728,7.23679605,84.245,84.22,11.63485496]
[1773026346924,7.23679605,84.245,84.221,11.87352323]
[1773026347127,7.23679605,84.245,84.23,11.63485496]
[1773026347563,29.66604485,84.272,84.221,11.87352323]
[1773026347564,1.63026197,84.268,84.24,11.63485496]
[1773026347739,1.63026197,84.279,84.25,11.63485496]
[1773026347936,11.86549277,84.278,84.25,11.63485496]
[1773026348138,11.86549277,84.278,84.251,11.86929531]
[1773026348533,1.563642,84.288,84.26,11.63485496]
[1773026348940,1.563642,84.288,84.246,11.869965]
[1773026349255,1.563642,84.279,84.24,11.63485496]
[1773026349761,11.63485496,84.26,84.23,11.63485496]
[1773026349934,1.563642,84.259,84.23,11.63485496]
[1773026350338,11.86830924,84.258,84.23,11.63485496]
[1773026350539,1.563642,84.257,84.23,11.63485496]
[1773026350833,11.63485496,84.27,84.231,0.93456956]
[1773026351034,1.563642,84.275,84.231,0.93456956]
[1773026351035,1.563642,84.275,84.24,11.63485496]
[1773026352265,29.66301133,84.281,84.25,11.63485496]
[1773026352440,11.86464809,84.284,84.26,11.63485496]
[1773026352641,1.563642,84.307,84.27,11.63485496]
[1773026352872,1.563642,84.305,84.27,11.63485496]
[1773026353051,11.63485496,84.31,84.251,11.86929531]
[1773026353052,1.563642,84.326,84.29,11.63485496]
[1773026353362,1.563642,84.326,84.279,0.94055969]
[1773026353363,1.563642,84.319,84.28,11.63485496]
[1773026353738,1.563642,84.319,84.29,11.63485496]
[1773026354066,1.563642,84.319,84.28,11.63485496]
[1773026354262,1.563642,84.299,84.26,11.63485496]
[1773026354765,41.51444701,84.308,84.246,11.86999976]
[1773026354766,1.563642,84.289,84.25,11.63485496]
[1773026355648,1.563642,84.279,84.24,11.63485496]
[1773026356246,1.563642,84.259,84.204,0.94915165]
[1773026356559,1.563642,84.249,84.22,11.63485496]
[1773026357659,1.563642,84.247,84.211,11.87488881]
[1773026358363,1.563642,84.306,84.242,0.95460607]
[1773026358555,1.563642,84.306,84.28,11.63485496]
[1773026358748,11.86177912,84.305,84.28,11.63485496]
[1773026358948,13.42526996,84.306,84.28,11.63485496]
[1773026359147,1.563642,84.306,84.28,11.63485496]
[1773026359348,1.563642,84.306,84.264,0.95460607]
[1773026359349,1.563642,84.306,84.27,11.63485496]
[1773026359544,1.563642,84.306,84.28,11.63485496]
[1773026359860,1.563642,84.306,84.264,0.95460607]
[1773026359861,1.563642,84.306,84.27,11.63485496]
[1773026360040,1.563642,84.297,84.26,11.63485496]
[1773026360241,42.85097535,84.31,84.27,11.63485496]
[1773026360446,11.86157498,84.306,84.28,11.63485496]
[1773026361061,1.0314007,84.299,84.29,11.63485496]
[1773026361368,1.68178076,84.319,84.28,11.63485496]
[1773026361566,1.68178076,84.319,84.28,11.58172829]
[1773026361865,1.68178076,84.307,84.271,11.86647838]
[1773026362249,1.68178076,84.307,84.27,11.58172829]
[1773026362449,1.68178076,84.307,84.27,23.44824469]
[1773026363069,1.68178076,84.289,84.25,11.58172829]
[1773026363252,1.68178076,84.289,84.26,11.58172829]
[1773026363449,1.68178076,84.289,84.239,29.67745974]
[1773026363450,1.68178076,84.339,84.28,11.58172829]
[1773026363652,1.68178076,84.339,84.31,11.58172829]
[1773026363954,11.85705138,84.338,84.303,11.8618543]
[1773026364152,11.85705138,84.338,84.31,11.58172829]
[1773026364559,11.85642879,84.343,84.303,41.51678947]
[1773026364757,11.85570237,84.348,84.32,11.58172829]
[1773026364973,11.85570237,84.348,84.303,41.51678947]
[1773026364974,1.68178076,84.347,84.31,11.58172829]
[1773026365848,29.6389169,84.349,84.31,11.58172829]
[1773026365849,1.68178076,84.345,84.31,11.58172829]
[1773026366149,1.68178076,84.339,84.302,11.86207812]
[1773026366350,1.68178076,84.339,84.31,11.58172829]
[1773026366555,59.26455231,84.368,84.302,11.86207812]
[1773026366556,8.9289748,84.359,84.32,11.58172829]
[1773026366757,8.9289748,84.359,84.302,11.86207812]
[1773026366758,1.68178076,84.349,84.31,11.58172829]
[1773026367874,1.68178076,84.339,84.3,11.58172829]
[1773026368061,1.68178076,84.329,84.276,0.03091583]
[1773026368270,1.68178076,84.341,84.31,11.58172829]
[1773026368468,1.68178076,84.341,84.3,11.58172829]
[1773026368469,11.58172829,84.34,84.3,11.58172829]
[1773026368662,1.68178076,84.339,84.3,11.58172829]
[1773026369178,1.68178076,84.358,84.32,11.58172829]